{"text_format":"1","workbook":"xlsx","n_sheets":1,"sheets":["Sheet1"],"not_rendered":{"charts":0,"images":1,"macros":0,"external_links":0,"defined_names":1,"comments":0,"pivot_tables":0},"unopened":[],"bounds":{"document_bytes":16777216,"sheet_cells":100000,"rows_first":2000,"rows_last":500,"rows_between":2000,"halvings":0,"cell_chars":16384,"cell_head_chars":4096},"cells_cut":0,"cells_raw":0,"read":"whole","date_system":"1900"}

{"sheet":"Sheet1","index":0,"n_rows":39,"n_cols":9,"rows_kept":39,"cut":false,"hidden":false,"merged":[[33,6,33,7],[2,7,3,7],[33,1,33,3],[32,1,32,7]]}
[{"$f":"\"2017_Gyor_Nebulo_\"&$H$5&\"_\"&$H$2&\"_\"&$H$3","v":"2017_Gyor_Nebulo_Válassz!__"}]
[null,null,"               Verseny neve:",null,"17. Székesfehérvári Nebuló Kupa",null,"Iskola neve:"]
[null,null,"               Verseny helyszíne:",null,"Székesfehérvár, Csónakázó-tó",null,"Legénység neve:"]
[null,null,"               Verseny dátuma:",null,"2022. szeptember 23. (péntek)"]
[null,null,"               Szervező:",null,"DRAGON AKTÍV Kft.",null,"Kategória:","Válassz!"]
[null,null,"               Szakami támogató:",null,"Magyar Sárkányhajó Szövetség",null,"Kapitány neve:"]
[null,null,null,null,null,null,"Kapitány e-mail címe:"]
[null,null,null,null,null,null,"Kapitány telefonszáma:"]
[null,"Kérünk minden adatot elektronikusan hiánytalanul kitölteni, visszaküldeni e-mailben, EXCEL formátumban, a verseny időpontja előtt 2nappal!",null,null,null,null,null,"nyilvantartas@sarkanyhajozas.hu"]
[null,"Nyomtatott, aláírt példányt, a versenyt megelőző technikai értekezleten kell leadni."]
[null,"Nr.                             ","NÉV","DIÁK IGAZOLVÁNY SZÁMA","SZÜLETÉSI HELY","SZÜLETÉSI IDŐ (év/hónap/nap)","ANYJA NEVE","ALÁÍRÁS",{"$f":"$A$1","v":"2017_Gyor_Nebulo_Válassz!__"}]
[null,1,null,null,null,null,null,null,{"$f":"$A$1","v":"2017_Gyor_Nebulo_Válassz!__"}]
[null,2,null,null,null,null,null,null,"2017_Gyor_Nebulo_Válassz!__"]
[null,3,null,null,null,null,null,null,"2017_Gyor_Nebulo_Válassz!__"]
[null,4,null,null,null,null,null,null,"2017_Gyor_Nebulo_Válassz!__"]
[null,5,null,null,null,null,null,null,"2017_Gyor_Nebulo_Válassz!__"]
[null,6,null,null,null,null,null,null,"2017_Gyor_Nebulo_Válassz!__"]
[null,7,null,null,null,null,null,null,"2017_Gyor_Nebulo_Válassz!__"]
[null,8,null,null,null,null,null,null,"2017_Gyor_Nebulo_Válassz!__"]
[null,9,null,null,null,null,null,null,"2017_Gyor_Nebulo_Válassz!__"]
[null,10,null,null,null,null,null,null,"2017_Gyor_Nebulo_Válassz!__"]
[null,11,null,null,null,null,null,null,"2017_Gyor_Nebulo_Válassz!__"]
[null,12,null,null,null,null,null,null,"2017_Gyor_Nebulo_Válassz!__"]
[null,13,null,null,null,null,null,null,"2017_Gyor_Nebulo_Válassz!__"]
[null,14,null,null,null,null,null,null,"2017_Gyor_Nebulo_Válassz!__"]
[null,15,null,null,null,null,null,null,"2017_Gyor_Nebulo_Válassz!__"]
[null,16,null,null,null,null,null,null,"2017_Gyor_Nebulo_Válassz!__"]
[null,17,null,null,null,null,null,null,"2017_Gyor_Nebulo_Válassz!__"]
[null,18,null,null,null,null,null,null,"2017_Gyor_Nebulo_Válassz!__"]
[null,19,null,null,null,null,null,null,"2017_Gyor_Nebulo_Válassz!__"]
[null,20,null,null,null,null,null,null,"2017_Gyor_Nebulo_Válassz!__"]
[null,"Dobos",null,null,null,null,null,null,"2017_Gyor_Nebulo_Válassz!__"]
[null,"Hozzájárulok, hogy az Magyar Sárkányhajó Szövetség által vagy annak ellenőrzése alatt más által szervezett sárkányhajó sport és szabadidő rendezvényen a Magyar Sárkányhajó Szövetség vagy ezen tevékenységre megbízottja saját céljai megvalósítása érdekében személyes adataimat rögzítse, továbbá rólam képmást és hangfelvételt készítsen. Hozzájárulok továbbá ahhoz, hogy a Magyar Sárkányhajó Szövetség ezen képmásaimat és hangfelvételeimet közzé tegye, sokszorosítsa, egyéb módon felhasználja és személyes adataimat és ezen felvételeket a jogszabályban meghatározott módon és időtartamig vagy írásbeli visszavonásomig személyes adataimmal együtt tárolja. Tudomásul veszem, hogy tömegfelvétel és nyilvános közéleti szereplésemről készült felvétel esetén nincs szükség a hozzájárulásomra a képmás és hangfelvétel elkészítéséhez és az elkészített felvétel felhasználásához."]
[null,"Az iskola tanára kijelenti, hogy a résztvevők az iskola tanulói és felelősséget vállal, hogy tudnak legalább 200 métert úszni könnyű sportfelszerelésben. \nTovábbá kijelenti, hogy a versenyszervező szervezettel a legénység résztvevői munkaviszonyban nem állnak. ",null,null,null,null,"Az iskola orvosa igazolja, hogy az iskola tanulói jó erőnléti és egészségi állapotban vannak, alkalmasak a versenyzésre."]
[]
[]
[null,null,"Kapitány (Pedagógus) aláírása:",null,null,null,"Iskolaorvos aláírása, pecsétje:"]
[]
[null,null,"Dátum:",null,null,null,"Dátum:"]